bitfinex/quotes_ETHUSD_20250824
["timestamp","ask_amount","ask_price","bid_price","bid_amount"]
[1756073491816,0.1048,4787.1,4787.0,2.08899101]
[1756073492388,0.8484,4787.1,4786.0,0.1048]
[1756073492588,0.1048,4786.8,4786.0,2.08941951]
[1756073492811,0.1048,4786.5,4785.8,3.1048]
[1756073492989,0.1048,4786.5,4785.8,3.0]
[1756073493184,0.4535,4786.4,4785.8,3.0]
[1756073493418,0.4535,4786.4,4785.7,3.75]
[1756073493617,0.4535,4786.4,4785.8,2.089513]
[1756073493832,0.4535,4786.4,4785.8,5.089513]
[1756073494037,0.4535,4786.4,4785.9,2.08945835]
[1756073494202,0.1048,4786.5,4785.8,5.0935112]
[1756073494410,0.0914,4787.4,4785.8,0.004]
[1756073494411,0.2901,4785.9,4785.8,0.004]
[1756073494722,0.8484,4785.9,4785.8,0.004]
[1756073496821,2.4544,4785.9,4785.8,0.004]
[1756073497126,3.14331288,4785.9,4785.8,0.004]
[1756073499998,2.68981288,4785.9,4785.8,0.004]
[1756073500199,3.14331288,4785.9,4785.8,0.004]
[1756073500824,3.14331288,4785.9,4785.8,0.054]
[1756073502340,3.69899839,4785.9,4785.8,0.054]
[1756073503054,2.15427288,4785.9,4785.8,0.054]
[1756073503550,0.1048,4785.9,4785.8,0.3555]
[1756073503736,0.1048,4786.3,4785.8,2.68630845]
[1756073503913,0.1048,4786.3,4785.9,2.08946928]
[1756073504118,0.1048,4786.3,4786.2,0.3015]
[1756073504864,0.001,4786.4,4786.2,0.78729688]
[1756073505052,0.001,4786.4,4786.3,2.33059653]
[1756073505346,0.001,4786.4,4785.8,0.054]
[1756073505546,0.3108,4786.3,4785.8,0.054]
[1756073505745,0.44488143,4786.2,4785.8,0.054]
[1756073505947,0.001,4786.4,4785.8,0.054]
[1756073505948,0.44480529,4786.1,4785.8,0.054]
[1756073506142,0.44480529,4786.0,4785.8,0.054]
[1756073506338,2.047,4786.4,4785.8,0.054]
[1756073506515,0.44482799,4786.3,4785.8,0.054]
[1756073506716,0.3108,4785.9,4785.8,0.054]
[1756073506948,0.75562799,4785.9,4785.8,0.054]
[1756073507254,1.19462799,4785.9,4785.8,0.054]
[1756073507421,1.27817356,4785.9,4785.8,0.054]
[1756073507619,2.92508823,4785.9,4785.8,0.054]
[1756073507859,3.29554524,4785.9,4785.8,0.054]
[1756073508040,5.38501639,4785.9,4785.8,0.054]
[1756073508856,3.29554524,4785.9,4785.8,0.054]
[1756073509235,1.59121942,4785.9,4785.8,0.054]
[1756073509434,2.70259044,4785.9,4785.8,0.054]
[1756073510452,5.45206159,4785.9,4785.8,0.054]
[1756073510754,4.93364537,4785.9,4785.8,0.054]
[1756073510940,38.08869057,4785.9,4785.8,0.054]
[1756073511521,1.16,4785.1,4784.1,0.044]
[1756073511757,0.66,4783.9,4783.1,0.044]
[1756073511923,4.17142065,4783.2,4783.1,0.044]
[1756073512123,0.66,4783.0,4782.1,0.04]
[1756073512325,35.1131773,4782.9,4782.1,0.04]
[1756073512553,40.29570208,4782.9,4782.1,0.04]
[1756073512756,39.18734585,4782.9,4782.1,0.04]
[1756073513753,44.0424028,4782.9,4782.1,0.04]
[1756073513961,37.17287888,4782.9,4782.1,0.04]
[1756073514163,35.80059556,4782.9,4782.8,0.3055]
[1756073514456,5.80059556,4782.9,4782.8,0.004]
[1756073514643,6.55039556,4782.9,4782.8,0.004]
[1756073515222,6.65519556,4782.9,4782.8,0.004]
[1756073515426,41.26340997,4782.9,4782.8,0.004]
[1756073515625,42.37046692,4782.9,4782.8,0.004]
[1756073515853,41.59068391,4782.9,4782.8,0.004]
[1756073516059,44.7885226,4782.9,4782.8,0.004]
[1756073516260,43.68146565,4782.9,4782.8,0.004]
[1756073517728,43.68146565,4782.9,4782.3,1e-08]
[1756073517729,2.75100033,4782.4,4782.3,1e-08]
[1756073517958,2.75100033,4782.4,4781.1,0.044]
[1756073517959,2.75152514,4781.2,4781.1,0.044]
[1756073518261,5.75174388,4780.7,4780.6,0.004]
[1756073518560,38.26919556,4780.7,4780.6,0.004]
[1756073518770,39.37230221,4780.7,4780.6,0.004]
[1756073518938,40.84339862,4780.7,4780.6,0.004]
[1756073519141,41.83203585,4780.7,4780.6,0.004]
[1756073519645,40.06773407,4780.7,4780.6,0.004]
[1756073519901,39.62873407,4780.7,4780.6,0.004]
[1756073520354,38.65793407,4780.7,4780.6,0.004]
[1756073520741,39.76013414,4780.7,4780.6,0.004]
[1756073520944,38.65793407,4780.7,4780.6,0.004]
[1756073521158,39.40773407,4780.7,4780.6,0.004]
[1756073521569,39.08029197,4780.7,4780.6,0.004]
[1756073522242,41.17203585,4780.7,4780.6,0.004]
[1756073522589,41.83203585,4780.7,4780.6,0.004]
[1756073522878,39.74029197,4780.7,4780.6,0.004]
[1756073523279,3.0,4780.6,4780.1,0.044]
[1756073523601,3.60810379,4780.2,4780.1,0.044]
[1756073523878,5.09205054,4780.0,4778.1,0.04]
[1756073524051,0.66,4780.1,4778.1,0.04]
[1756073524052,0.3108,4779.7,4778.1,0.04]
[1756073524251,7.80338576,4779.7,4778.1,0.04]
[1756073524477,9.19060017,4779.7,4778.1,0.04]
[1756073524792,9.61709313,4779.7,4778.1,0.04]
[1756073524995,8.22670697,4779.7,4778.1,0.04]
[1756073525280,4.47670697,4779.7,4779.6,0.3055]
[1756073525502,7.52209875,4779.7,4779.6,0.004]
[1756073525788,6.05022223,4779.6,4778.1,0.04]
[1756073526090,6.0636383,4778.2,4778.1,0.04]
[1756073526314,41.03298172,4778.2,4778.1,0.04]
[1756073526471,3.0,4778.1,4776.9,0.4382]
[1756073526674,1.09662556,4777.3,4776.9,0.4382]
[1756073526906,1.09662556,4777.3,4777.2,0.3015]
[1756073527089,4.18968592,4777.3,4777.2,0.3015]
[1756073527295,6.43624223,4777.3,4776.1,0.4782]
[1756073527614,0.43868592,4777.2,4776.1,0.4782]
[1756073527972,0.76631715,4777.2,4776.1,0.4782]
[1756073528173,0.76631715,4777.2,4777.1,0.3455]
[1756073528372,4.51731715,4777.2,4777.1,0.3455]
[1756073529013,0.76631715,4777.2,4777.1,0.3455]
[1756073529429,0.7295841,4777.5,4777.1,0.7837]
[1756073529631,0.4382,4778.4,4777.2,0.4382]
[1756073529958,1.09407153,4778.7,4777.4,2.09318876]
[1756073530075,1.09407153,4778.8,4777.6,0.66]
[1756073530275,1.09407153,4778.8,4777.5,1.93253888]
[1756073530276,3.752,4778.7,4777.5,0.32353888]
[1756073530512,1.09407153,4778.3,4777.1,0.044]
[1756073530711,3.752,4778.2,4777.1,0.044]
[1756073530921,1.09407153,4778.3,4777.2,0.66]
[1756073531082,1.09407153,4778.7,4777.4,3.66]
[1756073531284,3.752,4778.8,4777.3,1.609]
[1756073531484,4.84607153,4778.7,4777.3,1.609]
[1756073531722,1.09407153,4778.7,4777.4,0.66]
[1756073531936,3.752,4779.2,4777.8,2.09297852]
[1756073532080,3.752,4779.2,4777.5,2.09314495]
[1756073532282,1.09407153,4779.1,4777.6,0.7362145]
[1756073532524,1.09407153,4779.3,4778.4,2.09272996]
[1756073532838,1.09407153,4780.3,4778.5,0.66]
[1756073532985,0.04,4780.4,4779.1,0.66]
[1756073533183,0.04,4780.4,4780.3,2.09191891]
[1756073533536,0.04,4780.4,4780.3,6.17031015]
[1756073533828,0.04,4780.4,4780.3,6.27511015]
[1756073534031,0.04,4780.4,4779.9,3.701068]
[1756073534328,0.04,4780.4,4780.1,0.1048]
[1756073534483,0.04,4780.4,4780.3,2.75191891]
[1756073534887,0.04,4780.4,4780.1,0.1048]
[1756073535098,0.04,4780.4,4779.2,1.609]
[1756073535409,0.04,4780.4,4779.4,5.09231284]
[1756073535628,0.1048,4779.9,4779.4,3.0]
[1756073535846,0.1048,4779.9,4779.4,5.09231214]
[1756073536004,0.1048,4779.9,4779.4,3.0]
[1756073536207,0.1048,4779.9,4779.3,0.54094609]
[1756073536541,0.1048,4779.6,4779.1,2.09242129]
[1756073536746,1.09407153,4780.1,4778.9,0.66]
[1756073537046,0.1048,4780.0,4779.4,0.1048]
[1756073537344,1.19887153,4780.0,4779.4,0.32452012]
[1756073537499,1.09407153,4779.9,4779.4,0.1048]
[1756073537847,1.09407153,4779.8,4779.4,0.1048]
[1756073538000,1.09407153,4779.8,4778.9,2.09248975]
[1756073538201,0.1048,4779.4,4778.9,2.09248975]
[1756073538401,0.1048,4779.4,4778.8,2.09256477]
[1756073538634,0.1048,4779.4,4778.9,0.68063648]
[1756073539246,1.09407153,4780.2,4779.2,0.66]
[1756073539543,0.04,4780.4,4780.2,2.09196123]
[1756073540106,0.04,4780.4,4780.0,2.0920502]
[1756073540299,0.04,4780.4,4779.7,0.37013554]
[1756073540629,0.04,4780.4,4780.3,2.09191891]
[1756073540829,0.04,4780.4,4780.2,2.09196259]
[1756073541030,0.04,4780.4,4780.3,2.09191891]
[1756073541341,1.13407153,4780.4,4780.3,2.09191891]
[1756073541540,1.57682965,4780.4,4780.3,2.09191891]
[1756073541839,1.57682965,4780.4,4780.2,2.09196049]
[1756073542140,0.44275812,4780.3,4779.7,2.46229633]
[1756073542443,1.13407153,4780.4,4780.1,2.09200644]
[1756073542444,0.44275812,4780.2,4780.1,2.09200644]
[1756073543420,0.44275812,4780.2,4780.1,2.75200644]
[1756073544252,0.44275812,4780.2,4780.1,5.75200644]
[1756073544410,0.04,4780.4,4780.3,2.09191891]
[1756073544737,0.48311262,4780.4,4780.3,2.09191891]
[1756073544922,0.48311262,4780.4,4780.3,3.46062084]
[1756073546232,0.04,4780.4,4780.3,3.46062084]
[1756073546652,0.04,4780.4,4780.3,7.12062084]
[1756073547052,0.04,4780.4,4780.3,10.87062084]
[1756073548471,0.04,4780.4,4780.3,7.12062084]
[1756073548657,0.04,4780.4,4780.3,10.87062084]
[1756073549034,0.04,4780.4,4780.3,10.97542084]
[1756073550165,0.04,4780.4,4780.3,7.22542084]
[1756073550359,0.04,4780.4,4780.3,10.97542084]
[1756073550553,0.04,4780.4,4780.3,7.22542084]
[1756073550757,0.04,4780.4,4780.3,10.97542084]
[1756073551077,0.04,4780.4,4780.3,7.22542084]
[1756073551299,0.04,4780.4,4780.3,5.19671891]
[1756073551441,0.04,4780.4,4780.3,8.94571891]
[1756073551642,0.04,4780.4,4780.3,9.60571891]
[1756073551879,0.04,4780.4,4780.3,6.8538]
[1756073552042,0.04,4780.4,4780.3,8.94571891]
[1756073552238,0.04,4780.4,4780.3,5.19671891]
[1756073552443,0.04,4780.4,4780.3,8.94571891]
[1756073555337,0.04,4780.4,4780.3,9.16974755]
[1756073558342,0.04,4780.4,4780.3,5.42074755]
[1756073558543,0.04,4780.4,4780.3,9.16974755]
[1756073560268,0.04,4780.4,4780.3,8.94571891]
[1756073560571,0.04,4780.4,4780.3,8.94471891]
[1756073560775,0.04,4780.4,4780.3,0.1048]
[1756073560776,0.3561,4780.4,4780.3,0.1048]
[1756073560952,0.9081,4780.4,4779.8,0.004]
[1756073561275,0.55069716,4780.3,4780.0,2.09201223]
[1756073561477,0.44589716,4780.2,4780.0,2.09201223]
[1756073561772,0.44589716,4780.1,4779.9,3.748]
[1756073561979,0.4472,4780.1,4779.9,3.748]
[1756073562375,0.44642236,4780.0,4779.9,3.748]
[1756073562561,0.4472,4780.1,4779.9,5.84009397]
[1756073562766,0.4472,4780.1,4780.0,2.0920502]
[1756073563076,0.44641472,4780.1,4780.0,2.0920502]
[1756073563281,0.04,4780.4,4780.3,3.66]
[1756073563485,0.04,4780.4,4780.3,9.49991891]
[1756073563781,0.04,4780.4,4780.3,9.60471891]
[1756073563995,0.04,4780.4,4780.3,11.01559735]
[1756073564197,1e-08,4780.4,4780.3,11.01559735]
[1756073566064,1e-08,4780.4,4780.3,7.26759735]
[1756073566264,1e-08,4780.4,4780.3,10.25079735]
[1756073566465,1e-08,4780.9,4780.8,2.75170013]
[1756073566666,1e-08,4780.9,4780.8,11.95804726]
[1756073566904,1e-08,4780.9,4780.8,12.06284726]
[1756073570475,1e-08,4780.9,4780.8,8.31484726]
[1756073570681,1e-08,4780.9,4780.8,12.06184726]
[1756073573323,1e-08,4781.4,4781.3,5.75148139]
[1756073573496,1e-08,4781.4,4781.3,10.68658456]
[1756073577586,1e-08,4781.4,4781.3,6.94058456]
[1756073577799,1e-08,4781.4,4781.3,10.68558456]
[1756073578712,0.75930001,4781.4,4781.3,10.68558456]
[1756073579020,0.75930001,4781.4,4781.3,8.94128139]
[1756073579187,0.75930001,4781.4,4781.3,9.60128139]
[1756073579386,0.75930001,4781.4,4781.3,5.85628139]
[1756073579689,0.75930001,4781.4,4781.3,5.94128139]
[1756073579884,0.75930001,4781.4,4781.3,0.1048]
[1756073580089,0.75930001,4781.4,4781.3,3.8498]
[1756073580609,0.75930001,4781.4,4781.1,3.744]
[1756073580921,0.4699,4781.3,4781.1,3.744]
[1756073581122,0.2894,4781.2,4781.1,6.744]
[1756073581293,0.7593,4781.2,4781.1,8.83556888]
[1756073581828,0.7593,4781.2,4781.1,6.744]
[1756073582726,0.7593,4781.2,4779.9,1.612]
[1756073582927,0.7593,4781.2,4780.7,2.09170084]
[1756073582928,0.1048,4781.1,4780.7,2.09170084]
[1756073583089,0.5747,4781.1,4780.8,3.744]
[1756073583633,0.2894,4780.9,4780.8,3.744]
[1756073583788,0.7593,4780.9,4780.8,3.744]
[1756073584211,0.7593,4780.9,4780.6,3.744]
[1756073584524,0.4699,4780.8,4780.6,3.744]
[1756073584694,0.2894,4780.7,4780.6,3.744]
[1756073585024,0.7593,4780.7,4780.4,3.744]
[1756073585422,0.2894,4780.7,4780.4,3.744]
[1756073585718,0.4699,4780.6,4780.4,3.744]
[1756073585925,0.2894,4780.5,4780.4,3.744]
[1756073586337,0.1048,4780.8,4780.7,2.09174388]
[1756073586518,0.1048,4780.8,4780.7,9.49574388]
[1756073586834,0.46990001,4781.4,4781.3,2.09148139]
[1756073586991,0.75930001,4781.4,4781.3,5.83548139]
[1756073587188,0.46990001,4781.4,4781.3,5.83548139]
[1756073587628,1e-08,4781.4,4781.3,5.83548139]
[1756073587823,1e-08,4781.4,4781.3,10.40346446]
[1756073589203,1e-08,4781.6,4781.5,2.75139391]
[1756073589409,0.001,4781.9,4781.8,2.7512627]
[1756073589606,0.001,4781.9,4781.8,11.1032627]
[1756073589901,0.001,4781.9,4781.8,7.4640627]
[1756073590112,0.001,4781.9,4781.8,12.16260218]
[1756073590630,0.7603,4781.9,4781.8,4.7128]
[1756073590927,0.7603,4781.9,4781.8,10.5470627]
[1756073593198,0.7603,4781.9,4781.8,8.351]
[1756073593636,0.7603,4781.9,4781.8,10.5470627]
[1756073594728,0.7603,4781.9,4781.8,1.7128]
[1756073594930,0.7603,4781.9,4781.8,5.351]
[1756073595600,0.7603,4781.9,4781.8,7.4422627]
[1756073596143,0.7603,4781.9,4781.8,5.351]
[1756073596648,0.7603,4781.9,4780.9,1.608]
[1756073596851,0.7603,4781.9,4780.3,0.004]
[1756073596852,0.5543,4781.8,4781.0,3.742]
[1756073597054,0.4037,4781.1,4780.3,0.004]
[1756073597210,0.1048,4780.6,4780.3,0.004]
[1756073597529,0.4037,4780.4,4779.9,0.004]
[1756073597737,1.9069,4780.4,4779.4,0.004]
[1756073597902,0.1048,4780.0,4779.4,0.004]
[1756073598242,0.2989,4779.5,4779.4,0.004]
[1756073598596,0.7484,4779.5,4779.4,0.004]
[1756073598800,0.8532,4779.5,4779.4,0.004]
[1756073600904,2.4612,4779.5,4779.4,0.004]
[1756073601123,2.70732,4779.5,4779.4,0.004]
[1756073602813,2.4612,4779.5,4779.4,0.004]
[1756073603139,0.1048,4779.5,4779.4,0.004]
[1756073604002,0.1048,4779.8,4779.4,0.004]
[1756073604347,0.1048,4779.8,4779.5,2.09226269]
[1756073604641,0.1048,4779.8,4779.4,0.004]
[1756073605058,0.5543,4779.8,4779.4,0.004]
[1756073605245,0.4495,4780.4,4779.4,0.664]
[1756073605744,0.4495,4780.4,4779.4,3.004]
[1756073606039,0.4495,4780.4,4779.7,2.09216772]
[1756073606454,0.4495,4780.4,4779.4,0.664]
[1756073606744,0.77689254,4780.9,4779.4,0.95823716]
[1756073606945,0.4495,4780.9,4779.7,2.09218151]
[1756073607127,0.4495,4780.9,4779.7,5.83318151]
[1756073607333,0.4495,4780.9,4780.0,2.092045]
[1756073607846,0.001,4781.4,4780.8,0.1872]
[1756073608009,0.001,4781.4,4780.6,2.09178678]
[1756073608440,0.001,4781.4,4780.5,2.09182451]
[1756073608644,0.001,4781.4,4780.4,3.741]
[1756073608809,0.001,4781.4,4780.6,2.09178764]
[1756073609020,0.2989,4780.5,4780.3,3.0]
[1756073609217,0.4495,4780.4,4779.4,0.004]
[1756073609445,0.4495,4780.4,4779.8,2.09209817]
[1756073609648,2.0585,4781.2,4779.8,0.66]
[1756073609834,0.4495,4781.2,4780.4,2.09187515]
[1756073610217,0.4495,4781.2,4780.6,2.09178489]
[1756073610443,0.4495,4781.2,4780.1,0.66]
[1756073610621,0.4495,4781.2,4780.4,3.0]
[1756073610831,0.4495,4781.2,4780.3,2.09188957]
[1756073611031,0.4495,4781.2,4780.4,0.73598896]
[1756073611244,0.4495,4781.2,4780.2,3.0]
[1756073611422,0.4495,4781.2,4780.6,2.09177104]
[1756073611953,0.001,4781.4,4780.4,3.66]
[1756073612157,0.001,4781.4,4781.3,0.1872]
[1756073612363,0.4495,4781.3,4780.0,1.608]
[1756073612677,0.001,4781.4,4780.2,3.66]
[1756073612957,0.001,4781.4,4781.3,2.75148139]
[1756073613167,0.001,4781.4,4781.3,5.93868139]
[1756073613856,0.001,4781.4,4781.3,5.75148139]
[1756073614059,0.001,4781.4,4781.3,5.93868139]
[1756073614259,0.001,4781.4,4781.3,7.27650462]
[1756073615248,0.001,4781.4,4781.3,7.38130462]
[1756073616156,0.001,4781.4,4781.3,10.93310462]
[1756073616753,0.001,4781.4,4781.3,11.12030462]
[1756073617710,0.7494,4781.4,4781.3,3.0]
[1756073618347,0.4505,4781.4,4781.3,3.0]
[1756073618685,0.7494,4781.4,4781.3,3.0]
[1756073618888,0.7494,4781.4,4780.2,1.608]
[1756073619040,0.4495,4781.3,4780.3,5.82991891]
[1756073619239,0.4495,4781.3,4780.5,2.09183139]
[1756073619436,0.4495,4781.3,4780.5,2.09179277]
[1756073619980,0.4495,4781.3,4780.6,2.09176655]
[1756073621356,0.4495,4781.3,4780.4,6.738]
[1756073622646,0.4495,4781.3,4780.6,2.09175205]
[1756073623157,0.4495,4781.3,4780.7,2.09174238]
[1756073623542,0.001,4781.4,4781.3,2.09148139]
[1756073623788,0.001,4781.4,4781.3,6.01568139]
[1756073624908,1e-08,4781.4,4781.3,10.05006879]
[1756073625905,1e-08,4781.4,4781.3,10.04906879]
[1756073626063,1e-08,4781.4,4781.3,11.64433051]
[1756073626525,1e-08,4781.4,4781.3,11.42553205]
[1756073626698,1e-08,4781.4,4781.3,11.26994311]
[1756073627823,1e-08,4781.4,4781.3,11.37474311]
[1756073630090,1e-08,4781.4,4781.3,2.19628139]
[1756073630091,0.74050001,4781.4,4781.3,2.19628139]
[1756073630291,0.74050001,4781.4,4781.3,3.8398]
[1756073630704,0.84530001,4781.4,4780.9,3.734]
[1756073630914,0.4518,4781.3,4780.6,3.734]
[1756073631105,0.2887,4780.7,4780.4,3.0]
[1756073631414,0.4518,4780.6,4780.4,3.0]
[1756073631718,0.7405,4780.5,4780.4,5.09186756]
[1756073633284,0.4518,4781.1,4780.7,2.09170487]
[1756073633489,0.10480001,4781.4,4781.0,2.091599]
[1756073633704,0.10480001,4781.4,4781.1,3.734]
[1756073633985,0.4518,4781.3,4781.1,3.734]
[1756073634215,0.10480001,4781.4,4781.1,3.734]
[1756073634525,0.4518,4781.3,4781.1,3.734]
[1756073634885,0.10480001,4781.4,4781.1,3.734]
[1756073635087,0.2887,4781.2,4780.7,0.1048]
[1756073635319,0.4518,4781.1,4779.9,2.09208658]
[1756073635504,0.1048,4780.8,4780.1,0.1048]
[1756073635820,1e-08,4781.4,4779.9,3.0]
[1756073635821,0.2887,4780.2,4779.9,3.0]
[1756073636024,0.4518,4780.1,4779.6,0.1088]
[1756073636189,0.4518,4780.1,4779.6,0.004]
[1756073636190,0.3935,4779.7,4779.6,0.004]
[1756073636638,0.8453,4779.7,4779.6,0.004]
[1756073639108,0.1048,4779.7,4779.6,3.737]
[1756073639745,0.1048,4779.7,4779.6,10.47987023]
[1756073639945,0.1048,4780.8,4779.8,0.66]
[1756073640114,0.1048,4780.8,4780.4,2.09183948]
[1756073640308,0.4518,4780.7,4780.5,3.733]
[1756073640516,1e-08,4781.4,4780.3,3.733]
[1756073640517,0.7405,4780.6,4780.3,3.733]
[1756073640831,0.1048,4780.4,4780.2,3.732]
[1756073641156,0.7405,4780.3,4780.2,3.732]
[1756073641303,0.7405,4780.3,4779.6,0.80744494]
[1756073641304,0.7405,4780.3,4779.6,0.004]
[1756073641632,0.1048,4780.1,4779.6,0.004]
[1756073641813,0.2887,4779.7,4779.6,0.004]
[1756073642205,0.7405,4779.7,4779.6,0.004]
[1756073642732,0.1048,4779.8,4779.6,0.004]
[1756073642947,0.1048,4780.4,4779.8,2.09213774]
[1756073643152,0.1048,4780.4,4779.7,0.3744]
[1756073643441,0.1048,4780.4,4779.9,3.732]
[1756073643826,0.4518,4780.3,4779.9,3.732]
[1756073644112,0.4518,4780.3,4779.9,5.82407493]
[1756073644621,0.4518,4780.3,4780.0,2.0920452]
[1756073644939,0.1048,4780.4,4780.1,2.09199063]
[1756073645246,0.1048,4780.4,4779.9,3.732]
[1756073645247,0.5566,4780.4,4779.9,3.732]
[1756073645457,0.5566,4780.4,4779.9,5.82408872]
[1756073645673,0.5566,4780.4,4780.0,2.0920498]
[1756073645818,0.1048,4780.4,4779.9,5.8240867]
[1756073646018,0.1048,4780.4,4779.9,5.82408824]
[1756073646722,0.5566,4780.4,4779.9,5.82408824]
[1756073647453,0.4518,4780.3,4779.9,3.732]
[1756073647757,0.4518,4780.2,4779.9,5.82409143]
[1756073648714,0.1048,4780.4,4779.9,5.82409143]
[1756073648915,0.5566,4780.4,4779.9,3.732]
[1756073649114,0.1048,4780.4,4780.1,2.09199992]
[1756073649314,0.1048,4780.4,4779.9,3.732]
[1756073649315,0.32735852,4781.4,4780.3,0.1872]
[1756073649550,1e-08,4781.4,4781.2,2.09149217]
[1756073649736,0.2887,4781.3,4780.7,1.608]
[1756073650048,0.7405,4781.3,4780.8,3.0]
[1756073650471,0.5566,4781.2,4780.8,3.0]
[1756073650645,0.5566,4781.2,4780.9,2.09164869]
[1756073650841,1e-08,4781.4,4781.1,0.1872]
[1756073651169,1e-08,4781.4,4781.3,5.75148139]
[1756073651373,1e-08,4781.4,4781.3,6.04348139]
[1756073651940,1e-08,4781.4,4781.3,9.77348139]
[1756073653577,1e-08,4781.4,4781.3,5.85628139]
[1756073653873,0.73360001,4781.4,4781.3,3.0]
[1756073654093,0.73360001,4781.4,4781.2,3.729]
[1756073654378,1e-08,4781.4,4781.3,2.09148139]
[1756073655237,1e-08,4781.4,4781.2,3.729]
[1756073655460,0.43110001,4781.4,4781.2,3.729]
[1756073655656,0.7336,4781.3,4781.0,1.608]
[1756073655871,0.7336,4781.3,4781.1,3.728]
[1756073656679,0.10480001,4781.4,4781.1,3.728]
[1756073657402,0.10480001,4781.4,4781.1,6.728]
[1756073657973,0.3025,4781.2,4781.1,3.0]
[1756073658175,0.7336,4781.2,4781.1,3.0]
[1756073658596,0.7336,4781.2,4779.4,0.16398663]
[1756073658831,0.7336,4781.2,4780.6,2.19658426]
[1756073658975,0.3025,4781.2,4780.6,0.1048]
[1756073659181,0.4311,4781.1,4780.6,0.1048]
[1756073659476,0.3025,4780.7,4780.6,0.1048]
[1756073659680,0.8384,4780.7,4780.2,2.09196241]
[1756073659876,0.4311,4780.6,4780.3,2.09191702]
[1756073660105,1e-08,4781.4,4780.3,2.09191702]
[1756073660106,0.1048,4781.1,4780.4,2.19667515]
[1756073660305,0.1048,4781.1,4780.6,2.09175741]
[1756073660510,0.1048,4781.1,4780.7,2.09173415]
[1756073661024,0.5359,4781.1,4780.7,2.09173415]
[1756073661190,0.3025,4780.8,4780.4,2.19664011]
[1756073661453,0.5359,4781.1,4780.4,0.1048]
[1756073661658,0.5359,4781.1,4780.7,2.09173841]
[1756073661911,1e-08,4781.4,4781.1,2.09156888]
[1756073662095,1e-08,4781.4,4781.3,0.1872]
[1756073662429,1e-08,4781.4,4781.3,2.38348139]
[1756073663614,1e-08,4781.4,4781.3,6.04348139]
[1756073665212,1e-08,4781.4,4781.3,9.58228139]
[1756073665405,1e-08,4781.4,4781.3,10.93686642]
[1756073665581,1e-08,4781.4,4781.3,7.02366642]
[1756073665808,1e-08,4781.4,4781.3,10.74866642]
[1756073666008,1e-08,4781.4,4781.3,8.92128139]
[1756073667512,1e-08,4781.4,4781.3,9.76848139]
[1756073667714,1e-08,4781.4,4781.3,9.78068139]
[1756073668010,0.001,4781.9,4781.8,5.7512627]
[1756073668211,0.001,4781.9,4781.8,11.2714627]
[1756073668398,0.001,4781.9,4781.8,12.60774198]
[1756073669907,0.001,4781.9,4781.8,12.60674198]
[1756073675088,0.001,4781.9,4781.8,8.75954198]
[1756073675295,0.7346,4781.9,4781.8,1.608]
[1756073675528,0.7346,4781.9,4781.8,5.33]
[1756073676396,0.7346,4781.9,4781.8,8.33]
[1756073676700,0.7346,4781.9,4781.8,6.722]
[1756073676906,0.7346,4781.9,4781.8,8.8132627]
[1756073677944,0.7346,4781.9,4781.8,8.8122627]
[1756073678336,0.001,4781.9,4781.8,10.36030213]
[1756073680126,0.001,4782.9,4782.8,5.75082545]
[1756073680310,0.001,4782.9,4782.8,11.26602545]
[1756073680510,0.001,4782.9,4782.8,11.4862702]
[1756073680711,0.001,4782.9,4782.8,12.84398672]
[1756073681107,0.001,4782.9,4782.8,12.72698672]
[1756073681939,0.001,4782.9,4782.8,12.43654197]
[1756073682253,0.4321,4782.9,4782.8,11.77654197]
[1756073683041,0.7391,4782.9,4782.8,11.77654197]
[1756073683814,0.001,4782.9,4782.8,11.77654197]
[1756073685116,0.001,4782.9,4782.8,12.62374197]
[1756073687153,0.04,4783.4,4783.3,2.0906069]
[1756073687328,0.04,4783.4,4783.3,10.28901327]
[1756073687917,0.04,4783.4,4783.3,10.10181327]
[1756073690026,0.04,4783.4,4783.3,10.20661327]
[1756073690228,0.7928,4783.4,4783.3,10.86661327]
[1756073691358,0.04,4783.4,4783.3,10.86661327]
[1756073692038,0.04,4783.4,4783.3,11.05381327]
[1756073696943,0.041,4784.4,4783.6,2.09047579]
[1756073697168,0.041,4784.4,4784.3,5.75016993]
[1756073697337,0.041,4784.4,4784.3,9.46416993]
[1756073698890,0.348,4784.4,4784.3,9.46416993]
[1756073699046,0.7938,4784.4,4784.3,8.80416993]
[1756073699676,0.7938,4784.4,4784.3,3.714]
[1756073699864,0.7938,4784.4,4784.2,3.713]
[1756073700172,0.7938,4784.4,4783.7,6.69742403]
[1756073700173,0.4458,4784.3,4784.0,3.0]
[1756073700369,0.307,4784.1,4784.0,3.0]
[1756073700741,0.7528,4784.1,4782.7,1.607]
[1756073701069,0.4458,4784.0,4782.4,2.09097359]
[1756073701268,0.23598,4783.9,4782.5,3.712]
[1756073701646,0.23598,4783.9,4781.9,1.611]
[1756073701647,0.307,4782.6,4781.9,0.004]
[1756073701970,0.307,4782.6,4781.2,3.712]
[1756073702172,0.307,4782.6,4781.2,2.09152507]
[1756073702340,0.4458,4782.5,4781.2,2.09152507]
[1756073702670,0.307,4781.4,4781.1,0.044]
[1756073703074,0.7528,4781.4,4781.1,0.044]
[1756073703373,0.7528,4781.4,4781.1,3.044]
[1756073704073,0.7528,4781.4,4781.1,0.044]
[1756073705491,0.98878,4781.4,4781.1,0.044]
[1756073706984,0.1048,4781.2,4781.1,0.044]
[1756073707294,0.4118,4781.2,4781.1,0.044]